bitfinex-derivatives/quotes_SOLF0:USTF0_20240925
["timestamp","ask_amount","ask_price","bid_price","bid_amount"]
[1727288958019,6.68404038,149.94,149.91,10.26]
[1727288958622,6.68404038,149.94,149.92,3.3351]
[1727288960432,3.34924038,149.94,149.92,3.3351]
[1727288962723,3.34924038,149.94,149.93,3.335]
[1727288962921,10.26,149.97,149.93,3.335]
[1727288963125,13.56163496,149.97,149.93,3.335]
[1727288963428,3.3346,149.95,149.93,3.335]
[1727288969930,3.30163496,149.97,149.92,10.26]
[1727288970130,3.30163496,149.97,149.87,1.3964]
[1727288970131,12.8935,149.98,149.93,10.26]
[1727288971634,3.3343,149.97,149.94,3.3347]
[1727288971836,6.62036699,149.97,149.94,3.3347]
[1727288972034,19.85693902,149.97,149.94,3.3347]
[1727288974736,3.3344,149.96,149.94,3.3347]
[1727288975045,16.57097203,149.96,149.94,3.3347]
[1727288976542,3.3346,149.95,149.93,3.335]
[1727288979536,13.23657203,149.96,149.87,1.3964]
[1727288979742,26.78263902,149.97,149.91,10.26]
[1727288980135,26.78263902,149.97,149.92,3.3351]
[1727288981545,3.3347,149.95,149.93,3.335]
[1727288984855,3.28606699,149.97,149.92,10.26]
[1727288985152,13.23824287,149.97,149.93,10.26]
[1727288985346,3.2812757,149.96,149.94,3.3346]
[1727288985648,3.2812757,149.96,149.93,10.26]
[1727288985852,3.2812757,149.96,149.94,3.3348]
[1727288987456,3.2812757,149.96,149.94,3.24864921]
[1727288988659,0.12482768,149.97,149.93,10.26]
[1727288989161,3.39543161,149.97,149.93,10.26]
[1727288989362,3.39543161,149.97,149.95,3.3344]
[1727288990358,6.72953161,149.97,149.95,3.3344]
[1727288993755,3.45892768,149.97,149.95,3.3344]
[1727288994357,0.12482768,149.97,149.96,13.5943]
[1727289002558,0.12482768,149.97,149.96,3.3343]
[1727289002758,0.12482768,149.97,149.95,3.3344]
[1727289003361,0.12482768,149.97,149.96,3.3343]
[1727289003858,0.12482768,149.97,149.96,13.5943]
[1727289008855,0.16628764,150.0,149.99,3.3337]
[1727289009063,0.16628764,150.0,149.99,13.5937]
[1727289012463,0.21851177,150.03,150.02,3.333]
[1727289012760,0.21851177,150.03,150.02,13.593]
[1727289014973,0.21851177,150.03,150.02,3.333]
[1727289015370,0.21851177,150.03,150.02,13.593]
[1727289025780,0.28989245,150.06,150.05,3.3323]
[1727289026078,0.28989245,150.06,150.05,13.5923]
[1727289030182,0.42397334,150.09,150.05,13.5923]
[1727289030379,0.42397334,150.09,150.08,13.5917]
[1727289034389,0.41743672,150.12,150.11,3.331]
[1727289034589,0.41743672,150.12,150.11,13.591]
[1727289054793,0.41743672,150.12,150.11,3.331]
[1727289055099,0.41743672,150.12,150.09,10.26]
[1727289055287,0.41743672,150.12,150.11,10.26]
[1727289055687,0.41743672,150.12,150.11,13.591]
[1727289060096,0.47253246,150.15,150.14,3.3303]
[1727289060301,0.47253246,150.15,150.14,13.5903]
[1727289063598,5.09580167,150.2,150.17,3.3297]
[1727289063805,5.09580167,150.2,150.17,13.5897]
[1727289064002,3.71730167,150.2,150.17,13.5897]
[1727289064203,3.71730167,150.2,150.19,3.3292]
[1727289064409,3.71730167,150.2,150.19,13.5892]
[1727289064710,0.6803141,150.21,150.2,3.329]
[1727289069704,0.6803141,150.21,150.17,10.26]
[1727289070006,10.26,150.19,150.14,90.22]
[1727289070309,3.3296,150.18,150.14,13.5902]
[1727289070610,4.632,150.18,150.15,3.3301]
[1727289070807,1.3024,150.18,150.16,10.26]
[1727289071011,1.4026,150.2,150.16,10.26]
[1727289071207,1.4026,150.2,150.18,13.5894]
[1727289071413,1.4026,150.2,150.18,10.26]
[1727289071706,4.7317,150.2,150.17,13.5896]
[1727289072012,11.6626,150.2,150.16,10.26]
[1727289072909,14.9917,150.2,150.17,3.3296]
[1727289074502,13.5893,150.19,150.16,3.3299]
[1727289074698,10.26,150.18,150.13,10.26]
[1727289075311,3.36209193,150.17,150.13,10.26]
[1727289075704,6.69179193,150.17,150.14,3.3303]
[1727289075904,3.3297,150.17,150.14,3.3303]
[1727289076315,13.6300866,150.17,150.08,79.94]
[1727289076613,1.3475,150.17,150.08,79.94]
[1727289076810,4.74889906,150.17,150.08,79.94]
[1727289077008,1.3475,150.17,150.15,10.26]
[1727289077207,4.74690039,150.17,150.15,10.26]
[1727289077513,11.6075,150.17,150.12,10.26]
[1727289077724,1.2737,150.16,150.12,10.26]
[1727289078015,4.6037,150.16,150.13,3.3304]
[1727289078211,1.2737,150.16,150.13,3.3304]
[1727289078514,4.6037,150.16,150.13,3.3304]
[1727289078916,10.26,150.14,150.09,10.26]
[1727289079419,13.5905,150.14,150.09,10.26]
[1727289079820,13.5905,150.14,150.1,3.331]
[1727289080005,10.26,150.14,150.05,91.58318239]
[1727289080213,10.26,150.13,150.05,88.89588239]
[1727289080513,10.26,150.11,150.08,3.3315]
[1727289081011,10.26,150.11,150.05,88.89588239]
[1727289081012,3.3309,150.12,150.09,13.5914]
[1727289081215,10.26,150.14,150.09,10.26]
[1727289081419,10.26,150.15,150.1,10.26]
[1727289081718,1.2737,150.16,150.12,10.26]
[1727289081914,4.6037,150.16,150.12,10.26]
[1727289082115,4.6037,150.16,150.13,3.3304]
[1727289082613,10.26,150.14,150.05,88.89588239]
[1727289082822,10.26,150.12,150.07,10.26]
[1727289083020,10.26,150.11,150.09,3.3314]
[1727289083220,10.26,150.14,150.08,10.26]
[1727289083618,13.5905,150.14,150.1,3.3311]
[1727289083815,13.5905,150.14,150.08,10.26]
[1727289084014,13.5905,150.14,150.09,10.26]
[1727289084916,13.5905,150.14,150.11,3.331]
[1727289086010,13.5905,150.14,150.1,3.3312]
[1727289086217,1.2737,150.16,150.05,88.89588239]
[1727289086417,10.26,150.11,150.06,10.26]
[1727289086618,10.26,150.11,150.08,3.3315]
[1727289087113,13.5911,150.11,150.08,3.3315]
[1727289087429,10.26,150.12,150.09,3.3314]
[1727289088123,10.26,150.12,150.08,10.26]
[1727289088421,11.5337,150.16,150.1,10.26]
[1727289088934,3.3305,150.14,150.11,3.3309]
[1727289089716,3.3305,150.14,150.12,3.3308]
[1727289090026,3.3305,150.14,150.1,10.26]
[1727289090427,3.3305,150.14,150.11,3.3309]
[1727289090822,1.2737,150.16,150.12,10.26]
[1727289091020,11.5337,150.16,150.1,10.26]
[1727289091224,3.3304,150.14,150.1,10.26]
[1727289091425,13.5904,150.14,150.11,3.3309]
[1727289100329,1.2737,150.16,150.12,10.26]
[1727289100537,14.95627223,150.17,150.12,10.26]
[1727289100927,3.33,150.16,150.13,3.3304]
[1727289101131,14.95627223,150.17,150.13,3.3304]
[1727289101422,10.26,150.16,150.12,3.3308]
[1727289101627,10.26,150.14,150.12,3.3308]
[1727289102134,4.69627223,150.17,150.1,10.26]
[1727289102135,10.26,150.15,150.1,10.26]
[1727289103332,14.95627223,150.17,150.12,10.26]
[1727289103932,4.69627223,150.17,150.12,10.26]
[1727289104326,3.3299,150.16,150.14,3.3302]
[1727289104934,8.02607223,150.17,150.15,3.3301]
[1727289105546,1.4026,150.2,150.16,10.26]
[1727289105847,10.26,150.22,150.17,10.26]
[1727289106045,3.3287,150.22,150.17,10.26]
[1727289106539,3.3287,150.22,150.19,3.3291]
[1727289107540,4.0091141,150.21,150.19,3.3291]
[1727289108139,4.0091141,150.21,150.12,1.2845]
[1727289108140,0.6803141,150.21,150.2,3.329]
[1727289108350,0.6803141,150.21,150.2,13.589]
[1727289108645,0.6803141,150.21,150.2,3.329]
[1727289111946,0.6803141,150.21,150.19,3.3291]
[1727289112344,0.6803141,150.21,150.18,3.3294]
[1727289112345,3.329,150.2,150.18,3.3294]
[1727289112547,10.9403141,150.21,150.18,3.3294]
[1727289112744,14.2692141,150.21,150.18,3.3294]
[1727289113244,10.9403141,150.21,150.18,3.3294]
[1727289113736,3.3291,150.2,150.17,3.3296]
[1727289114042,10.26,150.2,150.14,10.26]
[1727289114346,3.3294,150.19,150.14,10.26]
[1727289114546,3.3294,150.19,150.17,3.3297]
[1727289115239,13.5894,150.19,150.17,3.3297]
[1727289116242,10.26,150.19,150.14,10.26]
[1727289116744,13.5894,150.19,150.16,3.3298]
[1727289116941,10.26,150.17,150.13,10.26]
[1727289117444,10.26,150.17,150.15,3.33]
[1727289117743,10.26,150.17,150.12,11.5445]
[1727289117744,13.53714856,150.17,150.12,11.5445]
[1727289118140,13.53714856,150.17,150.15,3.3301]
[1727289118745,10.26,150.17,150.15,3.3301]
[1727289119943,3.3296,150.18,150.16,3.3299]
[1727289122639,0.6803141,150.21,150.17,10.26]
[1727289123453,3.329,150.2,150.18,3.3293]
[1727289123844,0.6803141,150.21,150.17,10.26]
[1727289124052,4.0092141,150.21,150.19,3.3291]
[1727289124243,0.6803141,150.21,150.19,10.26]
[1727289124853,0.6803141,150.21,150.2,3.329]
[1727289130345,14.2691141,150.21,150.19,3.3292]
[1727289130548,14.2691141,150.21,150.12,2.6354]
[1727289130549,10.26,150.2,150.12,2.6354]
[1727289130855,0.6803141,150.21,150.14,3.3302]
[1727289130856,13.5898,150.17,150.14,3.3302]
[1727289131056,13.5898,150.17,150.12,10.26]
[1727289131256,10.26,150.17,150.12,10.26]
[1727289131460,10.26,150.17,150.15,3.33]
[1727289133048,0.6803141,150.21,150.09,90.15996557]
[1727289133246,10.26,150.14,150.09,99.12336557]
[1727289133555,10.26,150.14,150.12,3.3306]
[1727289134160,3.33844206,150.15,150.09,88.86336557]
[1727289134457,10.26,150.13,150.09,88.86336557]
[1727289134659,3.2791364,150.15,150.11,10.26]
[1727289134854,10.26,150.15,150.11,10.26]
[1727289135054,13.62009862,150.15,150.11,10.26]
[1727289135747,13.62009862,150.15,150.12,3.3307]
[1727289135953,10.26,150.17,150.12,10.26]
[1727289136254,13.5898,150.17,150.14,3.3303]
[1727289136655,13.51957284,150.17,150.12,10.26]
[1727289136962,16.84927284,150.17,150.14,3.3302]
[1727289138859,13.59,150.16,150.13,3.3305]
[1727289139051,10.26,150.16,150.1,10.26]
[1727289139668,3.3303,150.15,150.1,10.26]
[1727289141366,13.5903,150.15,150.1,10.26]
[1727289141863,13.5903,150.15,150.12,3.3306]
[1727289142165,10.26,150.15,150.1,10.26]
[1727289142971,13.5901,150.15,150.12,3.3306]
[1727289143869,13.5901,150.15,150.13,3.3305]
[1727289144068,10.26,150.16,150.12,10.26]
[1727289144961,10.26,150.15,150.13,3.3305]
[1727289145160,10.26,150.14,150.09,99.12336557]
[1727289145969,10.26,150.11,150.07,10.26]
[1727289147368,10.26,150.12,150.11,3.331]
[1727289156981,10.26,150.12,150.1,3.3311]
[1727289158276,16.90072992,150.14,150.11,3.331]
[1727289158476,13.5905,150.14,150.09,10.26]
[1727289158683,10.26,150.15,150.1,10.26]
[1727289158882,13.5902,150.15,150.13,3.3305]
[1727289159383,10.26,150.18,150.14,10.26]
[1727289159591,3.37099246,150.17,150.14,10.26]
[1727289159979,3.3298,150.17,150.15,3.33]
[1727289160190,6.64613673,150.17,150.15,3.33]
[1727289160886,6.64613673,150.17,150.14,3.3303]
[1727289161085,13.59,150.16,150.11,10.26]
[1727289161487,16.89700526,150.16,150.14,3.3303]
[1727289162294,10.26,150.16,150.11,10.26]
[1727289163197,10.26,150.16,150.14,3.3302]
[1727289164999,10.26,150.16,150.15,3.3301]
[1727289166092,3.3295,150.18,150.16,3.3299]
[1727289166395,10.26,150.2,150.15,10.26]
[1727289166588,13.5891,150.2,150.18,3.3294]
[1727289167898,10.26,150.19,150.12,2.6326]
[1727289168105,10.26,150.13,150.08,10.26]
[1727289168398,3.40628955,150.14,150.07,3.9533]
[1727289168597,10.26,150.12,150.11,3.3309]
[1727289168896,15.93876636,150.23,150.11,10.26]
[1727289169101,10.26,150.16,150.11,10.26]
[1727289169400,13.53770004,150.16,150.11,10.26]
[1727289170001,10.26,150.16,150.14,3.3301]
[1727289171892,10.26,150.16,150.12,10.26]
[1727289172098,10.26,150.16,150.11,10.26]
[1727289172299,10.26,150.14,150.12,3.3306]
[1727289172696,10.26,150.14,150.1,10.26]
[1727289173902,10.26,150.14,150.13,3.3306]
[1727289174203,13.53934962,150.16,150.11,10.26]
[1727289175602,13.53934962,150.16,150.13,3.3304]
[1727289175805,10.26,150.14,150.09,10.26]
[1727289176004,1.2798,150.2,150.08,10.26]
[1727289176005,10.26,150.13,150.08,10.26]
[1727289176305,13.55634452,150.13,150.11,3.3309]
[1727289178609,10.26,150.12,150.09,3.3313]
[1727289178911,10.26,150.1,150.09,3.3313]
[1727289179311,10.26,150.13,150.07,10.26]
[1727289179512,13.57144814,150.13,150.08,10.26]
[1727289180213,3.31144814,150.13,150.11,3.3308]
[1727289180417,13.5904,150.14,150.11,3.3308]
[1727289180716,10.26,150.13,150.11,3.3308]
[1727289180913,10.26,150.12,150.07,10.26]
[1727289181215,10.26,150.11,150.06,10.26]
[1727289181916,3.30433913,150.1,150.06,10.26]
[1727289182415,13.56433913,150.1,150.07,3.3319]
[1727289182607,10.26,150.08,150.07,3.3319]
[1727289182911,10.26,150.11,150.08,3.3317]
[1727289183111,10.26,150.12,150.08,3.3317]
[1727289183313,3.3311,150.11,150.08,3.3317]
[1727289183515,3.3336666,150.15,150.02,168.86006153]
[1727289183516,10.26,150.09,150.03,6.80086917]
[1727289183718,10.26,150.07,150.02,179.12006153]
[1727289184616,10.26,150.04,150.03,3.3327]
[1727289184821,10.26,150.04,150.02,168.86006153]
[1727289184822,10.26,150.06,150.02,168.86006153]
[1727289185012,16.88878275,150.07,150.02,179.12006153]
[1727289185212,10.26,150.06,150.03,3.3327]
[1727289185907,13.5921,150.06,150.04,3.3326]
[1727289186519,10.26,150.06,150.04,3.3326]
[1727289186919,13.5922,150.06,150.03,3.3327]
[1727289187116,13.5922,150.06,150.02,179.12006153]
[1727289187311,10.26,150.06,150.02,179.12006153]
[1727289187511,10.26,150.06,150.03,3.3327]
[1727289187921,10.26,150.06,150.02,179.12006153]
[1727289188123,10.26,150.06,150.03,3.3327]
[1727289188326,10.26,150.06,150.02,179.12006153]
[1727289189518,3.332,150.07,150.04,3.3324]
[1727289189721,13.592,150.07,150.04,3.3324]
[1727289190521,13.592,150.07,150.03,10.26]
[1727289190522,10.26,150.07,150.03,10.26]
[1727289190718,10.26,150.1,150.05,10.26]
[1727289191123,13.5914,150.1,150.07,3.3318]
[1727289191723,3.3315,150.09,150.07,3.3318]
[1727289192626,7.27711531,150.11,150.02,88.90006153]
[1727289192627,10.26,150.08,150.04,10.26]
[1727289193026,10.26,150.08,150.02,88.90006153]
[1727289193027,10.26,150.07,150.05,3.3322]
[1727289195128,10.26,150.07,150.06,3.3321]
[1727289196721,10.26,150.08,150.06,3.3321]
[1727289196921,3.3316,150.09,150.06,3.3321]
[1727289197832,7.27711531,150.11,150.08,3.3317]
[1727289198028,17.53711531,150.11,150.08,3.3317]
[1727289198429,20.86831531,150.11,150.08,3.3317]
[1727289198629,10.26,150.1,150.07,3.3318]
[1727289198937,10.26,150.09,150.07,3.3318]
[1727289199436,13.5916,150.09,150.06,3.332]
[1727289199634,10.26,150.08,150.06,3.332]
[1727289200135,10.26,150.08,150.02,99.16006153]
[1727289200325,10.26,150.06,150.02,99.16006153]
[1727289201428,10.26,150.05,150.02,88.90006153]
[1727289201632,10.26,150.03,149.98,90.26]
[1727289202523,10.26,150.01,149.98,80.0]
[1727289202725,10.26,150.0,149.98,80.0]
[1727289203939,13.60022268,150.01,149.99,3.3337]
[1727289207031,10.26,150.0,149.99,3.3337]
[1727289207333,10.26,150.0,149.92,1.2749]
[1727289207534,13.60022268,150.01,149.95,10.26]
[1727289208333,3.34022268,150.01,149.96,10.26]
[1727289208634,6.663,150.09,149.98,10.26]
[1727289208835,10.26,150.03,150.01,3.3332]
[1727289209038,3.37546691,150.02,149.99,10.26]
[1727289209445,3.37546691,150.02,150.01,3.3332]
[1727289210040,10.26,150.03,150.01,3.3332]
[1727289210439,3.41138016,150.02,150.01,3.3332]
[1727289210641,10.26,150.05,150.0,10.26]
[1727289210846,10.26,150.06,150.01,10.26]
[1727289211035,13.5923,150.06,150.01,10.26]
[1727289211952,13.5923,150.06,150.03,3.3326]
[1727289212449,3.3323,150.06,150.03,3.3326]
[1727289213241,3.332,150.07,149.99,16.0]
[1727289214448,3.3318,150.08,150.01,16.0]
[1727289214844,7.27711531,150.11,150.03,16.0]
[1727289215154,16.0,150.1,150.01,16.0]
[1727289215347,16.0,150.09,149.99,19.9589]
[1727289215665,16.0,150.09,150.03,3.3326]
[1727289216254,3.3323,150.06,150.04,3.3326]
[1727289216552,16.0,150.09,150.04,3.3326]
[1727289216752,3.332,150.07,150.05,3.3323]
[1727289216954,16.0,150.09,150.01,16.0]
[1727289217156,23.27711531,150.11,150.01,16.0]
[1727289217758,3.3317,150.08,150.05,3.3322]
[1727289218359,3.3319,150.07,150.05,3.3322]
[1727289219148,3.3319,150.07,150.04,3.3325]
[1727289219352,16.0,150.09,149.99,18.6406]
[1727289219554,7.27711531,150.11,149.96,88.93892046]
[1727289219555,16.0,150.05,149.96,88.93892046]
[1727289220148,3.3331,150.02,149.96,88.93892046]
[1727289220353,6.63620103,150.02,149.96,88.93892046]
[1727289220551,3.30310103,150.02,149.96,88.93892046]
[1727289220752,3.333,150.03,150.0,3.3334]
[1727289220950,6.70178959,150.03,150.0,3.3334]
[1727289222959,6.70178959,150.03,150.01,3.3332]
[1727289223150,3.36878959,150.03,149.96,104.93892046]
[1727289223456,16.0,150.07,149.96,104.93892046]
[1727289223655,3.3326,150.04,149.96,104.93892046]
[1727289223857,3.32488494,150.03,149.96,104.93892046]
[1727289224356,3.32488494,150.03,150.01,3.3331]
[1727289224959,3.3324,150.05,149.98,16.0]
[1727289225258,16.0,150.07,149.98,16.0]
[1727289225653,3.3322,150.06,149.99,16.0]
[1727289225954,3.3322,150.06,150.03,3.3326]
[1727289226861,3.3322,150.06,150.04,3.3325]
[1727289227355,3.332,150.07,150.05,3.3323]
[1727289227555,23.27711531,150.11,150.01,16.0]
[1727289227955,3.3316,150.09,150.06,3.332]
[1727289228257,23.27711531,150.11,150.06,3.332]
[1727289228855,3.3318,150.08,150.06,3.332]
[1727289231364,3.3319,150.07,150.05,3.3322]
[1727289238262,13.5719,150.07,150.05,3.3322]
[1727289239770,10.24,150.08,150.03,10.24]
[1727289240470,13.5717,150.08,150.06,3.332]
[1727289241063,10.24,150.07,149.96,175.62752046]
[1727289241265,10.24,150.01,149.96,170.35232046]
[1727289241566,10.24,150.01,149.96,180.59232046]
[1727289241761,10.24,150.01,149.99,3.3335]
[1727289241972,10.24,150.0,149.99,3.3335]
[1727289242162,10.24,150.0,149.96,99.17892046]
[1727289242468,16.02,149.99,149.91,80.02]
[1727289242670,3.36813293,150.0,149.92,16.02]
[1727289242871,16.02,150.03,149.94,16.02]
[1727289243073,19.29173856,150.03,149.94,16.02]
[1727289243370,3.27173856,150.03,149.96,16.02]
[1727289243670,16.02,150.05,149.96,16.02]
[1727289244061,3.3331,150.02,149.96,16.02]
[1727289244366,3.38714497,150.03,149.98,16.02]
[1727289244561,18.6939,150.07,149.97,16.02]
[1727289244769,16.02,150.05,149.97,16.02]
[1727289244966,3.3328,150.03,149.97,16.02]
[1727289245269,3.37380319,150.02,149.97,16.02]
[1727289245667,3.37380319,150.02,150.0,3.3333]
[1727289245862,18.6939,150.07,149.97,16.02]
[1727289246063,18.6939,150.07,150.02,3.3329]
[1727289246661,2.6739,150.07,149.98,16.02]
[1727289246866,16.02,150.09,150.0,16.02]
[1727289247259,3.3323,150.05,150.02,3.3328]
[1727289248874,3.3323,150.05,150.03,3.3327]
[1727289249074,3.3322,150.06,150.03,3.3327]
[1727289249470,3.3322,150.06,150.04,3.3325]
[1727289249867,3.3324,150.05,149.99,1.3964]
[1727289250162,16.02,150.07,150.03,3.3326]
[1727289250362,16.02,150.07,149.99,1.3964]
[1727289251073,3.3325,150.05,149.99,1.3964]
[1727289252081,3.3325,150.05,150.02,3.3328]
[1727289252873,3.3325,150.05,150.03,3.3328]
[1727289253367,3.3327,150.04,149.98,16.02]
[1727289253577,3.3327,150.04,149.96,16.02]
[1727289253773,16.02,150.05,149.96,16.02]
[1727289253976,3.3329,150.03,150.0,3.3332]
[1727289254176,3.41436574,150.02,150.0,3.3332]
[1727289254381,3.41436574,150.02,149.96,16.02]
[1727289254680,3.3326,150.04,149.98,16.02]
[1727289255070,6.6612,150.13,150.0,16.02]
[1727289255275,3.3321,150.07,150.0,16.02]
[1727289255677,2.71,150.1,150.06,3.3321]
[1727289256377,3.3315,150.09,150.06,3.3321]
[1727289256579,2.71,150.1,150.06,3.3321]
[1727289256882,2.71,150.1,150.0,16.02]
[1727289256883,16.02,150.09,150.0,16.02]
[1727289257079,16.02,150.09,149.99,1.378]
[1727289257277,17.4097,150.09,149.99,1.378]
[1727289257482,3.3323,150.06,150.03,3.3326]
[1727289257684,3.3323,150.06,149.99,1.378]
[1727289258181,3.3323,150.06,150.03,3.3326]
[1727289259085,17.4097,150.09,150.0,16.02]
[1727289259286,1.3897,150.09,150.0,16.02]
[1727289259782,1.3203,150.1,150.02,16.02]
[1727289260288,3.3317,150.08,150.06,3.3321]
[1727289260487,1.3203,150.1,150.06,3.3321]
[1727289260787,3.3317,150.09,150.06,3.3321]
[1727289261380,3.3317,150.08,150.06,3.3321]
[1727289262677,1.3203,150.1,150.02,16.02]
[1727289262886,1.3203,150.1,150.07,3.3319]
[1727289263384,3.3316,150.09,150.06,3.332]
[1727289263587,1.3203,150.1,150.06,3.332]
[1727289263785,3.332,150.07,150.04,3.3324]
[1727289263981,16.02,150.09,150.04,3.3324]
[1727289264476,3.3321,150.07,150.04,3.3324]
[1727289265681,16.02,150.07,150.02,3.3328]
[1727289266493,3.3325,150.05,150.02,3.3328]
[1727289267494,3.3327,150.04,149.99,17.398]
[1727289268087,3.3324,150.05,150.02,3.3328]
[1727289268794,3.3324,150.05,150.03,3.3327]
[1727289269092,3.3322,150.06,150.03,3.3327]
[1727289269697,3.3324,150.05,150.03,3.3327]
[1727289269893,16.02,150.07,149.96,16.02]
[1727289270096,3.333,150.03,149.96,16.02]
[1727289270395,6.73747512,150.03,150.01,3.3332]
[1727289270784,3.3326,150.04,149.96,16.02]
[1727289270985,16.02,150.05,149.96,16.02]
[1727289271191,16.02,150.03,149.95,3.9545]
[1727289271396,3.3333,150.01,149.95,3.9545]
[1727289271597,19.28751807,150.03,149.95,3.9545]
[1727289271896,19.28751807,150.03,149.95,2.6369]
[1727289272299,19.28751807,150.03,149.94,168.97055322]
[1727289272703,3.3336,150.0,149.94,184.99055322]
[1727289273694,3.3336,150.0,149.97,3.3339]
[1727289274395,3.3336,150.0,149.98,3.3339]
[1727289274702,19.28751807,150.03,149.98,3.3339]
[1727289274703,3.3333,150.01,149.98,3.3339]
[1727289275199,3.26751807,150.03,149.98,16.02]
[1727289275392,3.3331,150.02,149.98,16.02]
[1727289275587,6.71646335,150.02,149.99,3.3335]
[1727289276197,6.71646335,150.02,150.0,3.3334]
[1727289282708,1.3797,150.04,149.98,16.02]
[1727289282894,1.3815,150.06,150.0,16.02]
[1727289283704,3.3326,150.04,150.02,3.3329]
[1727289284003,1.3815,150.06,149.96,7.9773]
[1727289284203,2.7299,150.09,150.04,3.3324]
[1727289285300,3.3322,150.06,150.04,3.3324]
[1727289287211,3.332,150.07,150.05,3.3323]
[1727289287510,1.4011,150.09,150.04,16.02]
[1727289287703,1.3284,150.1,150.04,16.02]
[1727289287900,3.3318,150.08,150.04,16.02]
[1727289288812,3.3318,150.08,150.05,3.3322]
[1727289289111,3.3319,150.07,150.05,3.3322]
[1727289289700,1.3284,150.1,150.05,3.3322]
[1727289289701,3.3318,150.08,150.05,3.3322]
[1727289290214,3.3318,150.08,150.06,3.3321]
[1727289290602,3.3316,150.09,150.04,16.02]
[1727289290804,3.29221531,150.11,150.04,16.02]
[1727289291105,15.8339227,150.13,150.06,16.02]
[1727289291300,3.3315,150.1,150.06,16.02]
[1727289291499,6.58769381,150.1,150.07,3.3318]
[1727289291711,3.25619381,150.1,149.94,88.95055322]
[1727289291906,16.02,150.07,149.95,2.6789]
[1727289292124,1.3795,150.06,149.98,16.02]
[1727289292414,3.3327,150.04,150.0,3.3332]
[1727289292600,1.3795,150.06,150.0,16.02]
[1727289293110,3.3325,150.05,150.02,3.3329]
[1727289293312,1.3795,150.06,150.02,16.02]
[1727289293503,3.3321,150.07,150.02,16.02]
[1727289294103,3.3321,150.07,150.04,3.3325]
[1727289295002,1.3034,150.09,150.01,16.02]
[1727289295700,3.3323,150.06,150.01,16.02]
[1727289296407,3.3324,150.05,150.01,16.02]
[1727289296804,3.332,150.07,150.04,3.3324]
[1727289297515,1.3034,150.09,150.03,16.02]
[1727289297707,4.69504891,150.1,150.03,16.02]
[1727289298404,3.31554891,150.1,150.05,16.02]
[1727289298606,1.2687,150.13,150.05,16.02]
[1727289298814,4.56735973,150.13,150.05,16.02]
[1727289299007,3.3314,150.1,150.07,3.3318]
[1727289299208,3.41501633,150.09,150.07,3.3318]
[1727289299910,1.3915,150.14,150.07,19.3518]
[1727289300108,4.65181873,150.14,150.07,19.3518]
[1727289300309,3.3315,150.09,150.07,19.3518]
[1727289300505,6.58792642,150.09,150.07,16.02]
[1727289300915,3.25642642,150.09,150.05,19.3522]
[1727289301115,17.3493,150.13,150.05,3.3322]
[1727289301318,13.19389464,150.12,150.05,3.3322]
[1727289301516,3.3319,150.08,150.05,3.3322]
[1727289302318,16.50333343,150.12,150.05,16.02]
[1727289302519,3.30943879,150.12,150.05,16.02]